[Event "Titled Tuesday Blitz April 4 Late 2023"]
[White "liwadas82"]
[Black "Qiao, Cindy"]
[BlackFideId "2620243"]
[WhiteElo "2473"]
[BlackElo "1777"]
[Result "1-0"]
[Round "10"]
[TimeControl "180+2"]
[Date "2023.04.04"]
[WhiteClock "0:01:17"]
[BlackClock "0:01:05"]

1. e4 {[%clk 0:03:00]}  c5 {[%clk 0:02:18]} 2. Nf3 {[%clk 0:03:00]}  d6 {[%clk 0:02:19]} 3. d4 {[%clk 0:02:59]}  cxd4 {[%clk 0:02:20]} 4. Nxd4 {[%clk 0:02:59]}  Nf6 {[%clk 0:02:20]} 5. Nc3 {[%clk 0:03:00]}  g6 {[%clk 0:02:21]} 6. g3 {[%clk 0:02:58]}  Bg7 {[%clk 0:02:21]} 7. Bg2 {[%clk 0:02:59]}  O-O {[%clk 0:02:21]} 8. O-O {[%clk 0:02:59]}  Nc6 {[%clk 0:02:22]} 9. Nde2 {[%clk 0:02:59]}  Bd7 {[%clk 0:02:22]} 10. Be3 {[%clk 0:02:53]}  Ng4 {[%clk 0:02:21]} 11. Bg5 {[%clk 0:02:49]}  Qb6 {[%clk 0:02:21]} 12. h3 {[%clk 0:02:40]}  Nf6 {[%clk 0:02:21]} 13. b3 {[%clk 0:02:36]}  Qc5 {[%clk 0:02:19]} 14. Be3 {[%clk 0:02:36]}  Qa5 {[%clk 0:02:20]} 15. Rc1 {[%clk 0:02:32]}  Be6 {[%clk 0:02:17]} 16. a4 {[%clk 0:02:32]}  Rac8 {[%clk 0:02:16]} 17. Nd5 {[%clk 0:02:31]}  Rfe8 {[%clk 0:02:07]} 18. c4 {[%clk 0:02:28]}  Nb4 {[%clk 0:01:30]} 19. Bd2 {[%clk 0:02:18]}  Bxd5 {[%clk 0:01:30]} 20. exd5 {[%clk 0:02:18]}  Qb6 {[%clk 0:01:29]} 21. Be3 {[%clk 0:02:14]}  Qa5 {[%clk 0:01:25]} 22. Qe1 {[%clk 0:02:07]}  b6 {[%clk 0:01:22]} 23. Bd2 {[%clk 0:02:05]}  Nd3 {[%clk 0:01:22]} 24. Bxa5 {[%clk 0:02:04]}  Nxe1 {[%clk 0:01:23]} 25. Bxe1 {[%clk 0:02:04]}  a6 {[%clk 0:01:23]} 26. Bd2 {[%clk 0:02:02]}  b5 {[%clk 0:01:23]} 27. axb5 {[%clk 0:02:02]}  axb5 {[%clk 0:01:24]} 28. Be3 {[%clk 0:01:50]}  bxc4 {[%clk 0:01:24]} 29. bxc4 {[%clk 0:01:50]}  Rb8 {[%clk 0:01:24]} 30. Nd4 {[%clk 0:01:48]}  Rec8 {[%clk 0:01:22]} 31. Nc6 {[%clk 0:01:48]}  Rb7 {[%clk 0:01:21]} 32. Rb1 {[%clk 0:01:49]}  Rd7 {[%clk 0:01:21]} 33. Rb8 {[%clk 0:01:45]}  Rxb8 {[%clk 0:01:20]} 34. Nxb8 {[%clk 0:01:46]}  Rc7 {[%clk 0:01:21]} 35. Nc6 {[%clk 0:01:46]}  Nh5 {[%clk 0:01:15]} 36. Rb1 {[%clk 0:01:44]}  h6 {[%clk 0:01:11]} 37. Rb8+ {[%clk 0:01:40]}  Kh7 {[%clk 0:01:11]} 38. h4 {[%clk 0:01:34]}  Bf6 {[%clk 0:01:11]} 39. Bb6 {[%clk 0:01:31]}  Rd7 {[%clk 0:01:10]} 40. Bh3 {[%clk 0:01:31]}  e6 {[%clk 0:01:09]} 41. dxe6 {[%clk 0:01:30]}  fxe6 {[%clk 0:01:10]} 42. Bxe6 {[%clk 0:01:30]}  Rg7 {[%clk 0:01:11]} 43. Bd4 {[%clk 0:01:24]}  Bxd4 {[%clk 0:01:11]} 44. Nxd4 {[%clk 0:01:25]}  Nf6 {[%clk 0:01:11]} 45. Nb5 {[%clk 0:01:21]}  Ne4 {[%clk 0:01:10]} 46. Bd5 {[%clk 0:01:19]}  Nc3 {[%clk 0:01:05]} 47. Nxd6 {[%clk 0:01:17]} 1-0


[Site "https://www.chess.com"]

[Event "Titled Tuesday Blitz April 4 Late 2023"]
[White "Weisz, Bryan"]
[Black "Rios Escobar, Adan"]
[WhiteFideId "30934133"]
[BlackFideId "3403645"]
[WhiteElo "2365"]
[BlackElo "2472"]
[Result "1-0"]
[Round "10"]
[TimeControl "180+2"]
[Date "2023.04.04"]
[WhiteClock "0:00:16"]
[BlackClock "0:00:01"]

1. g3 {[%clk 0:03:00]}  Nf6 {[%clk 0:02:58]} 2. Bg2 {[%clk 0:03:00]}  c5 {[%clk 0:02:58]} 3. e4 {[%clk 0:02:55]}  d6 {[%clk 0:02:57]} 4. Ne2 {[%clk 0:02:55]}  g6 {[%clk 0:02:58]} 5. c3 {[%clk 0:02:52]}  Bg7 {[%clk 0:02:58]} 6. d4 {[%clk 0:02:52]}  O-O {[%clk 0:02:42]} 7. O-O {[%clk 0:02:47]}  e5 {[%clk 0:02:39]} 8. Na3 {[%clk 0:02:37]}  Nc6 {[%clk 0:02:36]} 9. Nc4 {[%clk 0:02:29]}  cxd4 {[%clk 0:02:35]} 10. cxd4 {[%clk 0:02:29]}  Bg4 {[%clk 0:02:13]} 11. f3 {[%clk 0:02:14]}  Bc8 {[%clk 0:02:08]} 12. Be3 {[%clk 0:02:14]}  Ne8 {[%clk 0:01:55]} 13. Rc1 {[%clk 0:02:02]}  Bd7 {[%clk 0:01:45]} 14. d5 {[%clk 0:01:23]}  Ne7 {[%clk 0:01:44]} 15. Qb3 {[%clk 0:01:20]}  b6 {[%clk 0:01:38]} 16. Qa3 {[%clk 0:01:19]}  Bb5 {[%clk 0:01:32]} 17. Qb4 {[%clk 0:01:08]}  Ba6 {[%clk 0:01:32]} 18. Nc3 {[%clk 0:01:08]}  f5 {[%clk 0:01:30]} 19. Nb5 {[%clk 0:01:05]}  Bxb5 {[%clk 0:01:27]} 20. Qxb5 {[%clk 0:01:05]}  Rf7 {[%clk 0:01:13]} 21. a4 {[%clk 0:01:02]}  Nc7 {[%clk 0:01:03]} 22. Qb4 {[%clk 0:01:00]}  Nexd5 {[%clk 0:00:53]} 23. exd5 {[%clk 0:00:59]}  Nxd5 {[%clk 0:00:53]} 24. Qd2 {[%clk 0:00:58]}  Nxe3 {[%clk 0:00:53]} 25. Nxe3 {[%clk 0:00:55]}  Bh6 {[%clk 0:00:50]} 26. Rc3 {[%clk 0:00:50]}  d5 {[%clk 0:00:48]} 27. f4 {[%clk 0:00:28]}  d4 {[%clk 0:00:31]} 28. Bxa8 {[%clk 0:00:24]}  Qxa8 {[%clk 0:00:29]} 29. Rd3 {[%clk 0:00:19]}  Rd7 {[%clk 0:00:17]} 30. Nc2 {[%clk 0:00:18]}  Kg7 {[%clk 0:00:08]} 31. Qe2 {[%clk 0:00:17]}  exf4 {[%clk 0:00:04]} 32. gxf4 {[%clk 0:00:16]}  Qd5 {[%clk 0:00:02]} 33. Rxd4 {[%clk 0:00:16]}  Qc5 {[%clk 0:00:02]} 34. Qe5+ {[%clk 0:00:16]}  Qxe5 {[%clk 0:00:01]} 35. fxe5 {[%clk 0:00:17]}  Rxd4 {[%clk 0:00:01]} 36. Nxd4 {[%clk 0:00:17]}  Be3+ {[%clk 0:00:02]} 37. Kg2 {[%clk 0:00:18]}  Bxd4 {[%clk 0:00:02]} 38. Rd1 {[%clk 0:00:17]}  Bxe5 {[%clk 0:00:02]} 39. Rd7+ {[%clk 0:00:17]}  Kf6 {[%clk 0:00:02]} 40. Rxa7 {[%clk 0:00:18]}  Bxb2 {[%clk 0:00:01]} 41. Rxh7 {[%clk 0:00:17]}  Bd4 {[%clk 0:00:01]} 42. Rb7 {[%clk 0:00:16]} 1-0


[Site "https://www.chess.com"]

[Event "Titled Tuesday Blitz April 4 Late 2023"]
[White "Dudzinski, Pawel"]
[Black "Wang, Alexander J"]
[WhiteFideId "1117890"]
[BlackFideId "30955270"]
[WhiteElo "2099"]
[BlackElo "2317"]
[Result "1-0"]
[Round "10"]
[TimeControl "180+2"]
[Date "2023.04.04"]
[WhiteClock "0:00:26"]
[BlackClock "0:00:18"]

1. e4 {[%clk 0:02:53]}  c5 {[%clk 0:02:58]} 2. Nc3 {[%clk 0:02:53]}  d6 {[%clk 0:02:57]} 3. g3 {[%clk 0:02:53]}  Nc6 {[%clk 0:02:57]} 4. Bg2 {[%clk 0:02:54]}  g6 {[%clk 0:02:57]} 5. d3 {[%clk 0:02:55]}  Bg7 {[%clk 0:02:57]} 6. Be3 {[%clk 0:02:55]}  e6 {[%clk 0:02:58]} 7. Qd2 {[%clk 0:02:56]}  Nge7 {[%clk 0:02:58]} 8. Bh6 {[%clk 0:02:56]}  O-O {[%clk 0:02:58]} 9. h4 {[%clk 0:02:57]}  f5 {[%clk 0:02:49]} 10. h5 {[%clk 0:02:56]}  Rf7 {[%clk 0:02:46]} 11. Bxg7 {[%clk 0:02:56]}  Rxg7 {[%clk 0:02:45]} 12. h6 {[%clk 0:02:57]}  Rf7 {[%clk 0:02:45]} 13. Nf3 {[%clk 0:02:58]}  a6 {[%clk 0:02:40]} 14. Ng5 {[%clk 0:02:58]}  Rf8 {[%clk 0:02:39]} 15. f4 {[%clk 0:02:58]}  d5 {[%clk 0:02:31]} 16. exd5 {[%clk 0:02:53]}  exd5 {[%clk 0:02:32]} 17. O-O-O {[%clk 0:02:51]}  d4 {[%clk 0:02:29]} 18. Ne2 {[%clk 0:02:49]}  Nd5 {[%clk 0:02:27]} 19. Bxd5+ {[%clk 0:02:40]}  Qxd5 {[%clk 0:02:26]} 20. Kb1 {[%clk 0:02:40]}  Be6 {[%clk 0:02:21]} 21. b3 {[%clk 0:02:32]}  Bf7 {[%clk 0:02:15]} 22. Rhe1 {[%clk 0:02:30]}  b5 {[%clk 0:02:11]} 23. Ng1 {[%clk 0:02:25]}  Rae8 {[%clk 0:02:08]} 24. N1f3 {[%clk 0:02:24]}  a5 {[%clk 0:01:49]} 25. Rxe8 {[%clk 0:02:19]}  Rxe8 {[%clk 0:01:47]} 26. Re1 {[%clk 0:02:18]}  Qd7 {[%clk 0:01:31]} 27. Ne5 {[%clk 0:02:03]}  Nxe5 {[%clk 0:01:25]} 28. fxe5 {[%clk 0:01:53]}  Bd5 {[%clk 0:01:16]} 29. Qxa5 {[%clk 0:01:53]}  Qe7 {[%clk 0:01:15]} 30. Qd2 {[%clk 0:01:50]}  Ra8 {[%clk 0:01:13]} 31. e6 {[%clk 0:01:09]}  Qa7 {[%clk 0:00:56]} 32. c4 {[%clk 0:00:48]}  dxc3 {[%clk 0:00:53]} 33. Qxc3 {[%clk 0:00:48]}  Qxa2+ {[%clk 0:00:52]} 34. Kc1 {[%clk 0:00:49]}  Qa1+ {[%clk 0:00:46]} 35. Qxa1 {[%clk 0:00:46]}  Rxa1+ {[%clk 0:00:47]} 36. Kd2 {[%clk 0:00:45]}  Rxe1 {[%clk 0:00:45]} 37. Kxe1 {[%clk 0:00:46]}  Bxb3 {[%clk 0:00:44]} 38. e7 {[%clk 0:00:41]}  Bf7 {[%clk 0:00:44]} 39. Kd2 {[%clk 0:00:38]}  Be8 {[%clk 0:00:40]} 40. Kc3 {[%clk 0:00:37]}  Bd7 {[%clk 0:00:38]} 41. d4 {[%clk 0:00:36]}  b4+ {[%clk 0:00:32]} 42. Kc4 {[%clk 0:00:36]}  cxd4 {[%clk 0:00:29]} 43. Kxb4 {[%clk 0:00:34]}  d3 {[%clk 0:00:26]} 44. Kc3 {[%clk 0:00:34]}  Bb5 {[%clk 0:00:26]} 45. Kd2 {[%clk 0:00:35]}  Ba4 {[%clk 0:00:17]} 46. Kxd3 {[%clk 0:00:35]}  Be8 {[%clk 0:00:17]} 47. Kd4 {[%clk 0:00:36]}  Bd7 {[%clk 0:00:17]} 48. Ke5 {[%clk 0:00:36]}  Be8 {[%clk 0:00:18]} 49. Kf6 {[%clk 0:00:37]}  Bd7 {[%clk 0:00:17]} 50. Nf7 {[%clk 0:00:33]}  Bc6 {[%clk 0:00:15]} 51. Nd6 {[%clk 0:00:33]}  g5 {[%clk 0:00:15]} 52. Kxg5 {[%clk 0:00:32]}  f4 {[%clk 0:00:15]} 53. gxf4 {[%clk 0:00:31]}  Kh8 {[%clk 0:00:15]} 54. e8=Q+ {[%clk 0:00:29]}  Bxe8 {[%clk 0:00:15]} 55. Nxe8 {[%clk 0:00:29]}  Kg8 {[%clk 0:00:16]} 56. Nd6 {[%clk 0:00:27]}  Kh8 {[%clk 0:00:16]} 57. Kf6 {[%clk 0:00:26]}  Kg8 {[%clk 0:00:16]} 58. Ke7 {[%clk 0:00:26]}  Kh8 {[%clk 0:00:17]} 59. f5 {[%clk 0:00:27]}  Kg8 {[%clk 0:00:17]} 60. f6 {[%clk 0:00:27]}  Kh8 {[%clk 0:00:18]} 61. Nf5 {[%clk 0:00:26]}  Kg8 {[%clk 0:00:17]} 62. f7+ {[%clk 0:00:26]}  Kh8 {[%clk 0:00:18]} 1-0


[Site "https://www.chess.com"]

[Event "Titled Tuesday Blitz April 4 Late 2023"]
[White "Zampronha, Wladimir Camilo"]
[Black "Kovalevsky, Stanislav"]
[WhiteFideId "2103087"]
[BlackFideId "13508598"]
[WhiteElo "2176"]
[BlackElo "2174"]
[Result "0-1"]
[Round "10"]
[TimeControl "180+2"]
[Date "2023.04.04"]
[WhiteClock "0:00:03"]
[BlackClock "0:00:02"]

1. e4 {[%clk 0:03:00]}  e6 {[%clk 0:02:59]} 2. d4 {[%clk 0:03:00]}  d5 {[%clk 0:03:00]} 3. Nc3 {[%clk 0:03:00]}  dxe4 {[%clk 0:03:00]} 4. Nxe4 {[%clk 0:03:00]}  Nf6 {[%clk 0:03:01]} 5. Bd3 {[%clk 0:02:59]}  Bd7 {[%clk 0:03:01]} 6. Nf3 {[%clk 0:02:56]}  Bc6 {[%clk 0:03:01]} 7. Ned2 {[%clk 0:02:56]}  Nbd7 {[%clk 0:02:56]} 8. O-O {[%clk 0:02:56]}  Bd6 {[%clk 0:02:54]} 9. Re1 {[%clk 0:02:56]}  O-O {[%clk 0:02:54]} 10. c3 {[%clk 0:02:57]}  Re8 {[%clk 0:02:53]} 11. Nc4 {[%clk 0:02:57]}  a6 {[%clk 0:02:52]} 12. Nce5 {[%clk 0:02:57]}  Bxf3 {[%clk 0:02:49]} 13. Qxf3 {[%clk 0:02:53]}  c6 {[%clk 0:02:35]} 14. Bg5 {[%clk 0:02:51]}  Qc7 {[%clk 0:02:35]} 15. Qh3 {[%clk 0:02:44]}  Bxe5 {[%clk 0:02:20]} 16. dxe5 {[%clk 0:02:42]}  Nxe5 {[%clk 0:02:11]} 17. Bxf6 {[%clk 0:02:26]}  Nxd3 {[%clk 0:02:10]} 18. Qg4 {[%clk 0:02:10]}  g6 {[%clk 0:02:02]} 19. Qg5 {[%clk 0:01:59]}  Qf4 {[%clk 0:01:57]} 20. Red1 {[%clk 0:01:47]}  h6 {[%clk 0:01:30]} 21. Qxf4 {[%clk 0:01:41]}  Nxf4 {[%clk 0:01:25]} 22. Rd7 {[%clk 0:01:40]}  Nd5 {[%clk 0:01:24]} 23. Bh4 {[%clk 0:01:26]}  g5 {[%clk 0:01:16]} 24. Bg3 {[%clk 0:01:27]}  Re7 {[%clk 0:01:16]} 25. Rxe7 {[%clk 0:01:27]}  Nxe7 {[%clk 0:01:17]} 26. Rd1 {[%clk 0:01:27]}  Nd5 {[%clk 0:01:05]} 27. c4 {[%clk 0:01:28]}  Nb6 {[%clk 0:01:06]} 28. b3 {[%clk 0:01:25]}  a5 {[%clk 0:00:59]} 29. Bc7 {[%clk 0:01:23]}  Ra6 {[%clk 0:00:58]} 30. Rd8+ {[%clk 0:01:16]}  Kg7 {[%clk 0:00:58]} 31. Rb8 {[%clk 0:01:01]}  a4 {[%clk 0:00:58]} 32. Rxb7 {[%clk 0:00:58]}  axb3 {[%clk 0:00:57]} 33. Be5+ {[%clk 0:00:57]}  Kg6 {[%clk 0:00:56]} 34. axb3 {[%clk 0:00:56]}  Kf5 {[%clk 0:00:49]} 35. Bc3 {[%clk 0:00:55]}  f6 {[%clk 0:00:44]} 36. h3 {[%clk 0:00:53]}  Nc8 {[%clk 0:00:42]} 37. g4+ {[%clk 0:00:46]}  Ke4 {[%clk 0:00:42]} 38. Kg2 {[%clk 0:00:29]}  f5 {[%clk 0:00:31]} 39. Rh7 {[%clk 0:00:29]}  Ra3 {[%clk 0:00:25]} 40. Rxh6 {[%clk 0:00:27]}  Rxb3 {[%clk 0:00:22]} 41. Rxe6+ {[%clk 0:00:28]}  Kd3 {[%clk 0:00:21]} 42. Bf6 {[%clk 0:00:27]}  f4 {[%clk 0:00:21]} 43. Bxg5 {[%clk 0:00:27]}  f3+ {[%clk 0:00:19]} 44. Kg3 {[%clk 0:00:25]}  Kxc4 {[%clk 0:00:20]} 45. h4 {[%clk 0:00:25]}  Kd5 {[%clk 0:00:14]} 46. Re8 {[%clk 0:00:22]}  Nd6 {[%clk 0:00:15]} 47. Rd8 {[%clk 0:00:23]}  Ke6 {[%clk 0:00:15]} 48. Rf8 {[%clk 0:00:19]}  Ne4+ {[%clk 0:00:15]} 49. Kh2 {[%clk 0:00:18]}  Nxf2 {[%clk 0:00:15]} 50. Kg3 {[%clk 0:00:12]}  Ne4+ {[%clk 0:00:15]} 51. Kh2 {[%clk 0:00:12]}  Rb2+ {[%clk 0:00:16]} 52. Kg1 {[%clk 0:00:11]}  f2+ {[%clk 0:00:15]} 53. Kf1 {[%clk 0:00:12]}  Ng3+ {[%clk 0:00:15]} 54. Kg2 {[%clk 0:00:12]}  f1=Q+ {[%clk 0:00:14]} 55. Kxg3 {[%clk 0:00:08]}  Rb3+ {[%clk 0:00:05]} 56. Kh2 {[%clk 0:00:03]}  Rh3# {[%clk 0:00:02]} 0-1


[Site "https://www.chess.com"]

[Event "Titled Tuesday Blitz April 4 Late 2023"]
[White "mjelcic"]
[Black "Ai, Evan"]
[BlackFideId "2094770"]
[WhiteElo "2238"]
[BlackElo "1963"]
[Result "1/2-1/2"]
[Round "10"]
[TimeControl "180+2"]
[Date "2023.04.04"]
[WhiteClock "0:00:34"]
[BlackClock "0:00:07"]

1. e4 {[%clk 0:03:00]}  e5 {[%clk 0:03:00]} 2. Nf3 {[%clk 0:03:00]}  Nc6 {[%clk 0:03:00]} 3. d4 {[%clk 0:02:59]}  exd4 {[%clk 0:03:01]} 4. Bc4 {[%clk 0:02:59]}  Nf6 {[%clk 0:02:59]} 5. e5 {[%clk 0:02:59]}  d5 {[%clk 0:02:59]} 6. Bb5 {[%clk 0:03:00]}  Ne4 {[%clk 0:02:58]} 7. Nxd4 {[%clk 0:03:00]}  Bd7 {[%clk 0:02:58]} 8. Bxc6 {[%clk 0:03:01]}  bxc6 {[%clk 0:02:59]} 9. O-O {[%clk 0:03:01]}  Bc5 {[%clk 0:02:59]} 10. f3 {[%clk 0:03:02]}  Ng5 {[%clk 0:02:59]} 11. f4 {[%clk 0:03:03]}  Ne4 {[%clk 0:02:58]} 12. Be3 {[%clk 0:03:03]}  O-O {[%clk 0:02:58]} 13. Nd2 {[%clk 0:03:03]}  Nxd2 {[%clk 0:02:57]} 14. Qxd2 {[%clk 0:03:04]}  Qe7 {[%clk 0:02:55]} 15. Nb3 {[%clk 0:03:04]}  Bb6 {[%clk 0:02:50]} 16. Qc3 {[%clk 0:03:04]}  f6 {[%clk 0:02:44]} 17. Nc5 {[%clk 0:03:03]}  Bf5 {[%clk 0:02:38]} 18. Bd4 {[%clk 0:03:01]}  fxe5 {[%clk 0:02:36]} 19. fxe5 {[%clk 0:03:01]}  Bg6 {[%clk 0:02:35]} 20. b4 {[%clk 0:02:59]}  a5 {[%clk 0:02:29]} 21. a3 {[%clk 0:02:57]}  axb4 {[%clk 0:02:29]} 22. axb4 {[%clk 0:02:57]}  Rxa1 {[%clk 0:02:27]} 23. Rxa1 {[%clk 0:02:56]}  Qh4 {[%clk 0:02:06]} 24. e6 {[%clk 0:02:42]}  Bf5 {[%clk 0:01:43]} 25. e7 {[%clk 0:02:37]}  Re8 {[%clk 0:01:42]} 26. Bxg7 {[%clk 0:02:37]}  Qxe7 {[%clk 0:01:32]} 27. Bd4 {[%clk 0:02:34]}  Qg5 {[%clk 0:01:25]} 28. Re1 {[%clk 0:02:22]}  Rxe1+ {[%clk 0:01:15]} 29. Qxe1 {[%clk 0:02:22]}  Be4 {[%clk 0:01:13]} 30. Qe2 {[%clk 0:02:02]}  Qc1+ {[%clk 0:00:55]} 31. Kf2 {[%clk 0:02:02]}  Bxc5 {[%clk 0:00:51]} 32. Qg4+ {[%clk 0:01:57]}  Kf7 {[%clk 0:00:42]} 33. Qg7+ {[%clk 0:01:51]}  Ke8 {[%clk 0:00:35]} 34. Bxc5 {[%clk 0:01:39]}  Qxc2+ {[%clk 0:00:29]} 35. Ke3 {[%clk 0:01:38]}  Qc1+ {[%clk 0:00:24]} 36. Ke2 {[%clk 0:01:32]}  Qc2+ {[%clk 0:00:21]} 37. Ke3 {[%clk 0:01:32]}  Qd3+ {[%clk 0:00:21]} 38. Kf4 {[%clk 0:01:31]}  Qf1+ {[%clk 0:00:20]} 39. Ke5 {[%clk 0:01:29]}  Qa1+ {[%clk 0:00:19]} 40. Bd4 {[%clk 0:01:29]}  Qf1 {[%clk 0:00:18]} 41. Qg8+ {[%clk 0:01:18]}  Qf8 {[%clk 0:00:15]} 42. Qe6+ {[%clk 0:01:08]}  Qe7 {[%clk 0:00:15]} 43. g4 {[%clk 0:01:07]}  Qxe6+ {[%clk 0:00:12]} 44. Kxe6 {[%clk 0:01:08]}  Bf3 {[%clk 0:00:12]} 45. h3 {[%clk 0:01:06]}  Bg2 {[%clk 0:00:12]} 46. h4 {[%clk 0:01:06]}  Bh3 {[%clk 0:00:13]} 47. Kf5 {[%clk 0:01:06]}  h5 {[%clk 0:00:13]} 48. Kf4 {[%clk 0:00:56]}  Bxg4 {[%clk 0:00:12]} 49. Ke5 {[%clk 0:00:54]}  Kd7 {[%clk 0:00:11]} 50. Bc5 {[%clk 0:00:54]}  Be2 {[%clk 0:00:09]} 51. Kf6 {[%clk 0:00:54]}  Bg4 {[%clk 0:00:09]} 52. Kg5 {[%clk 0:00:54]}  Ke6 {[%clk 0:00:09]} 53. Kf4 {[%clk 0:00:53]}  Bd1 {[%clk 0:00:09]} 54. Bd4 {[%clk 0:00:53]}  Be2 {[%clk 0:00:08]} 55. Ke3 {[%clk 0:00:53]}  Bg4 {[%clk 0:00:07]} 56. Kf4 {[%clk 0:00:53]}  Kd6 {[%clk 0:00:07]} 57. Bc5+ {[%clk 0:00:53]}  Ke6 {[%clk 0:00:07]} 58. Bd4 {[%clk 0:00:53]}  Kd7 {[%clk 0:00:07]} 59. Ke5 {[%clk 0:00:53]}  Kc8 {[%clk 0:00:07]} 60. Kf6 {[%clk 0:00:50]}  Kb7 {[%clk 0:00:08]} 61. Ke7 {[%clk 0:00:49]}  Ka6 {[%clk 0:00:09]} 62. Kf6 {[%clk 0:00:43]}  Kb5 {[%clk 0:00:09]} 63. Bc5 {[%clk 0:00:44]}  Kc4 {[%clk 0:00:09]} 64. Ke5 {[%clk 0:00:44]}  Bd1 {[%clk 0:00:08]} 65. Kf4 {[%clk 0:00:38]}  d4 {[%clk 0:00:08]} 66. Ke4 {[%clk 0:00:38]}  d3 {[%clk 0:00:09]} 67. Ke3 {[%clk 0:00:38]}  Bg4 {[%clk 0:00:08]} 68. Kd2 {[%clk 0:00:37]}  Bf5 {[%clk 0:00:08]} 69. Bf8 {[%clk 0:00:37]}  Kd5 {[%clk 0:00:08]} 70. Bc5 {[%clk 0:00:38]}  Ke4 {[%clk 0:00:08]} 71. Be7 {[%clk 0:00:37]}  Kf3 {[%clk 0:00:08]} 72. Bd8 {[%clk 0:00:36]}  Ke4 {[%clk 0:00:07]} 73. Bxc7 {[%clk 0:00:36]}  Kd5 {[%clk 0:00:08]} 74. Bd8 {[%clk 0:00:36]}  Kc4 {[%clk 0:00:08]} 75. Be7 {[%clk 0:00:36]}  Kb3 {[%clk 0:00:08]} 76. Bc5 {[%clk 0:00:35]}  Kc4 {[%clk 0:00:08]} 77. Bd6 {[%clk 0:00:34]}  Kd5 {[%clk 0:00:08]} 78. Be7 {[%clk 0:00:34]}  Ke6 {[%clk 0:00:07]} 79. Bc5 {[%clk 0:00:34]}  Kd5 {[%clk 0:00:07]} 1/2-1/2


[Site "https://www.chess.com"]

[Event "Titled Tuesday Blitz April 4 Late 2023"]
[White "Perske, Thore"]
[Black "Kalajzic, Ivan"]
[WhiteFideId "12902195"]
[BlackFideId "14506378"]
[WhiteElo "2336"]
[BlackElo "2203"]
[Result "1-0"]
[Round "10"]
[TimeControl "180+2"]
[Date "2023.04.04"]
[WhiteClock "0:01:20"]
[BlackClock "0:00:08"]

1. d4 {[%clk 0:03:00]}  Nc6 {[%clk 0:02:23]} 2. g3 {[%clk 0:03:00]}  e5 {[%clk 0:02:22]} 3. dxe5 {[%clk 0:03:00]}  Nxe5 {[%clk 0:02:21]} 4. Bg2 {[%clk 0:03:01]}  Nf6 {[%clk 0:02:20]} 5. Nf3 {[%clk 0:03:01]}  Nxf3+ {[%clk 0:02:20]} 6. Bxf3 {[%clk 0:03:02]}  d5 {[%clk 0:02:20]} 7. O-O {[%clk 0:03:02]}  Bh3 {[%clk 0:02:19]} 8. Re1 {[%clk 0:03:01]}  Be7 {[%clk 0:02:16]} 9. Nd2 {[%clk 0:03:00]}  O-O {[%clk 0:02:16]} 10. c4 {[%clk 0:03:00]}  c6 {[%clk 0:02:12]} 11. cxd5 {[%clk 0:02:59]}  cxd5 {[%clk 0:02:10]} 12. Nb3 {[%clk 0:02:59]}  Bb4 {[%clk 0:02:02]} 13. Bd2 {[%clk 0:02:59]}  Qb6 {[%clk 0:01:59]} 14. Bxb4 {[%clk 0:02:59]}  Qxb4 {[%clk 0:01:59]} 15. Qd4 {[%clk 0:02:58]}  Qxd4 {[%clk 0:01:53]} 16. Nxd4 {[%clk 0:02:59]}  Rac8 {[%clk 0:01:49]} 17. Rac1 {[%clk 0:02:59]}  a6 {[%clk 0:01:47]} 18. e3 {[%clk 0:02:56]}  Bg4 {[%clk 0:01:41]} 19. Bxg4 {[%clk 0:02:52]}  Nxg4 {[%clk 0:01:42]} 20. h4 {[%clk 0:02:43]}  g6 {[%clk 0:01:40]} 21. Kf1 {[%clk 0:02:43]}  Kg7 {[%clk 0:01:32]} 22. Ke2 {[%clk 0:02:42]}  Kf6 {[%clk 0:01:32]} 23. a4 {[%clk 0:02:36]}  Ne5 {[%clk 0:01:29]} 24. b3 {[%clk 0:02:26]}  h5 {[%clk 0:01:26]} 25. Nf3 {[%clk 0:02:25]}  Nxf3 {[%clk 0:01:23]} 26. Kxf3 {[%clk 0:02:25]}  Ke5 {[%clk 0:01:22]} 27. Red1 {[%clk 0:02:24]}  Rc6 {[%clk 0:01:17]} 28. Rxc6 {[%clk 0:02:21]}  bxc6 {[%clk 0:01:18]} 29. Rc1 {[%clk 0:02:22]}  Kd6 {[%clk 0:01:18]} 30. Ke2 {[%clk 0:02:22]}  Rb8 {[%clk 0:01:12]} 31. Rc3 {[%clk 0:02:22]}  c5 {[%clk 0:01:09]} 32. Kd3 {[%clk 0:02:21]}  Rb4 {[%clk 0:01:08]} 33. Kc2 {[%clk 0:02:20]}  f6 {[%clk 0:00:57]} 34. Rd3 {[%clk 0:02:13]}  g5 {[%clk 0:00:54]} 35. hxg5 {[%clk 0:02:11]}  fxg5 {[%clk 0:00:54]} 36. Rd1 {[%clk 0:02:12]}  h4 {[%clk 0:00:53]} 37. gxh4 {[%clk 0:02:10]}  gxh4 {[%clk 0:00:53]} 38. Rh1 {[%clk 0:02:07]}  Rg4 {[%clk 0:00:52]} 39. Kc3 {[%clk 0:02:04]}  Ke5 {[%clk 0:00:52]} 40. f3 {[%clk 0:02:00]}  Rb4 {[%clk 0:00:49]} 41. Rg1 {[%clk 0:01:58]}  h3 {[%clk 0:00:45]} 42. Rg5+ {[%clk 0:01:58]}  Kf6 {[%clk 0:00:37]} 43. Rh5 {[%clk 0:01:55]}  d4+ {[%clk 0:00:37]} 44. exd4 {[%clk 0:01:54]}  Rxd4 {[%clk 0:00:36]} 45. Rxh3 {[%clk 0:01:53]}  Rf4 {[%clk 0:00:34]} 46. Rh6+ {[%clk 0:01:52]}  Ke5 {[%clk 0:00:33]} 47. Rxa6 {[%clk 0:01:53]}  Rxf3+ {[%clk 0:00:32]} 48. Kc4 {[%clk 0:01:54]}  Rf1 {[%clk 0:00:20]} 49. Kxc5 {[%clk 0:01:52]}  Rc1+ {[%clk 0:00:20]} 50. Kb4 {[%clk 0:01:52]}  Kd4 {[%clk 0:00:20]} 51. Ra8 {[%clk 0:01:52]}  Rc7 {[%clk 0:00:19]} 52. Rd8+ {[%clk 0:01:51]}  Ke5 {[%clk 0:00:19]} 53. a5 {[%clk 0:01:50]}  Rb7+ {[%clk 0:00:19]} 54. Ka4 {[%clk 0:01:51]}  Ke6 {[%clk 0:00:20]} 55. b4 {[%clk 0:01:51]}  Ke7 {[%clk 0:00:20]} 56. Rd1 {[%clk 0:01:51]}  Rc7 {[%clk 0:00:21]} 57. a6 {[%clk 0:01:50]}  Rc2 {[%clk 0:00:21]} 58. b5 {[%clk 0:01:49]}  Ra2+ {[%clk 0:00:22]} 59. Kb4 {[%clk 0:01:50]}  Rb2+ {[%clk 0:00:22]} 60. Ka5 {[%clk 0:01:50]}  Rb1 {[%clk 0:00:23]} 61. a7 {[%clk 0:01:50]}  Rxd1 {[%clk 0:00:23]} 62. b6 {[%clk 0:01:34]}  Ra1+ {[%clk 0:00:17]} 63. Kb5 {[%clk 0:01:34]}  Rb1+ {[%clk 0:00:15]} 64. Kc6 {[%clk 0:01:32]}  Ra1 {[%clk 0:00:12]} 65. Kb7 {[%clk 0:01:21]}  Kd6 {[%clk 0:00:10]} 66. a8=Q {[%clk 0:01:20]}  Ra7+ {[%clk 0:00:08]} 67. Qxa7 {[%clk 0:01:20]} 1-0


[Site "https://www.chess.com"]